bitfinex/quotes_SOLUSD_20250126
["timestamp","ask_amount","ask_price","bid_price","bid_amount"]
[1737880835563,0.0001,256.25,256.21,3.903]
[1737880835762,0.0001,256.25,256.2,20.0]
[1737880839539,0.0001,256.25,256.2,23.9031]
[1737880840765,0.0001,256.25,256.21,27.679884]
[1737880842398,0.0001,256.25,256.2,20.0]
[1737880842399,0.0001,256.25,256.16,20.0]
[1737880842967,0.0001,256.25,256.2,20.0]
[1737880843476,0.0001,256.25,256.16,0.39024318]
[1737880843688,0.0001,256.25,256.14,3.9041]
[1737880844263,6.85503434,256.24,256.15,23.776884]
[1737880844885,6.85503434,256.24,256.14,3.9041]
[1737880845062,6.85503434,256.24,256.13,0.03]
[1737880845465,6.85503434,256.2,256.13,0.03]
[1737880845992,3.903,256.21,256.13,0.03]
[1737880847387,8.39403434,256.24,256.13,23.806884]
[1737880847687,1.539,256.24,256.13,24.19717878]
[1737880848080,1.539,256.24,256.17,23.776884]
[1737880849697,0.0001,256.25,256.17,23.776884]
[1737880849916,0.0001,256.25,256.18,3.9035]
[1737880850694,0.0001,256.25,256.22,20.0]
[1737880851799,0.0001,256.25,256.22,23.9028]
[1737880852996,0.0001,256.25,256.23,23.776884]
[1737880853303,0.0001,256.25,256.23,24.16703769]
[1737880853887,0.0001,256.25,256.24,27.679384]
[1737880860716,0.0001,256.25,256.24,23.776884]
[1737880861002,0.0001,256.25,256.22,3.9028]
[1737880861208,0.0001,256.25,256.19,137.3]
[1737880861385,0.0001,256.25,256.2,3.903]
[1737880861583,0.0001,256.25,256.23,23.776884]
[1737880862504,0.0001,256.25,256.21,3.903]
[1737880864918,0.0001,256.25,256.2,23.776884]
[1737880865102,0.0001,256.25,256.19,20.0]
[1737880866298,0.0001,256.25,256.22,20.0]
[1737880873231,0.0001,256.25,256.22,23.9027]
[1737880874632,0.0001,256.25,256.22,20.0]
[1737880874807,0.0001,256.25,256.18,20.0]
[1737880876126,0.0001,256.25,256.19,27.680184]
[1737880881935,0.0001,256.25,256.2,0.39021381]
[1737880884037,0.0001,256.25,256.22,23.776884]
[1737880884937,0.0001,256.25,256.22,20.0]
[1737880885229,0.0001,256.25,256.23,23.776884]
[1737880888530,0.0001,256.25,256.23,27.679584]
[1737880888738,0.0001,256.25,256.22,20.0]
[1737880894420,0.0001,256.25,256.22,23.776884]
[1737880896450,0.0001,256.25,256.18,20.03]
[1737880896635,0.0001,256.25,256.19,3.9033]
[1737880896838,0.0001,256.25,256.22,20.0]
[1737880897253,0.0001,256.25,256.18,0.03]
[1737880897546,6.85503434,256.24,256.18,0.03]
[1737880897752,6.85503434,256.22,256.18,0.03]
[1737880898553,3.903,256.21,256.18,0.03]
[1737880900245,6.85503434,256.2,256.18,0.03]
[1737880901857,6.85503434,256.2,256.13,0.03]
[1737880901858,6.85503434,256.14,256.13,0.03]
[1737880902033,6.85503434,256.14,256.01,0.03]
[1737880902230,21.0,256.16,256.01,0.03]
[1737880902231,6.85503434,256.07,256.01,0.03]
[1737880906331,11.3092,256.19,256.01,20.03]
[1737880906332,6.85503434,256.11,256.01,20.03]
[1737880906535,6.85503434,256.13,256.03,3.9057]
[1737880907639,6.85503434,256.15,256.03,3.9057]
[1737880908448,6.85503434,256.13,256.03,3.9057]
[1737880912050,6.85503434,256.15,256.04,23.776884]
[1737880913469,6.85503434,256.15,256.05,3.9054]
[1737880913669,0.063,256.13,256.05,3.9054]
[1737880914169,0.063,256.13,256.06,23.776884]
[1737880915066,0.063,256.13,256.09,20.0]
[1737880915252,0.063,256.13,256.1,23.776884]
[1737880915453,0.063,256.13,256.11,3.9045]
[1737880915851,0.063,256.13,256.12,24.16723171]
[1737880916055,0.063,256.13,256.12,23.776884]
[1737880916944,0.063,256.13,256.11,3.9045]
[1737880917158,0.063,256.13,256.11,23.776884]
[1737880917871,1.5329,256.25,256.15,23.776884]
[1737880918089,0.0001,256.25,256.15,20.0]
[1737880918263,0.0001,256.25,256.15,20.39025994]
[1737880918461,0.0001,256.25,256.15,20.0]
[1737880918961,0.0001,256.25,256.16,20.0]
[1737880922276,0.0001,256.25,256.16,23.9037]
[1737880922460,0.0001,256.25,256.16,20.0]
[1737880922661,6.85503434,256.24,256.16,20.0]
[1737880927690,6.85503434,256.24,256.16,23.9037]
[1737880928097,0.0001,256.25,256.16,23.9037]
[1737880930173,0.0001,256.25,256.17,23.776884]
[1737880930591,0.0001,256.25,256.18,0.39021614]
[1737880931994,0.0001,256.25,256.2,23.776884]
[1737880933170,0.0001,256.25,256.19,3.9033]
[1737880933367,0.0001,256.25,256.17,20.0]
[1737880934076,0.0001,256.25,256.16,20.0]
[1737880934503,6.85503434,256.24,256.16,20.0]
[1737880935886,10.75763434,256.24,256.16,20.0]
[1737880936086,10.75763434,256.24,256.15,20.0]
[1737880936996,10.75763434,256.24,256.16,20.0]
[1737880938709,3.9026,256.24,256.16,20.0]
[1737880940013,6.85503434,256.2,256.13,0.03]
[1737880940220,6.85503434,256.17,256.13,0.03]
[1737880940599,6.85503434,256.15,256.13,0.03]
[1737880941893,3.9041,256.14,256.13,0.03]
[1737880942324,6.85503434,256.15,256.13,0.03]
[1737880943634,10.75903434,256.15,256.13,0.03]
[1737880958122,20.0,256.11,256.01,0.03]
[1737880958322,6.85503434,256.06,256.01,0.03]
[1737880959831,3.9054,256.05,256.01,0.03]
[1737880961443,6.85503434,256.06,256.01,0.03]
[1737880961647,6.85503434,256.1,256.01,0.03]
[1737880961843,6.85503434,256.12,256.01,0.03]
[1737880963639,3.9045,256.11,256.01,3.936]
[1737880964327,6.85503434,256.12,256.01,3.936]
[1737880966450,10.75943434,256.12,256.01,3.936]
[1737880967145,10.75943434,256.12,256.02,23.776884]
[1737880967846,10.75943434,256.12,256.03,3.9057]
[1737880968950,6.85503434,256.12,256.03,3.9057]
[1737880973028,10.75943434,256.12,256.03,3.9057]
[1737880973952,6.85503434,256.1,256.01,0.03]
[1737880974157,6.85503434,256.08,256.01,0.03]
[1737880975042,3.9051,256.07,256.01,0.03]
[1737880982057,6.85503434,256.1,256.01,0.03]
[1737880982454,10.75943434,256.12,256.01,0.03]
[1737880983049,6.85503434,256.12,256.01,23.806884]
[1737880983342,0.063,256.13,256.02,7.98777986]
[1737880983661,0.063,256.13,256.03,23.776884]
[1737880983848,0.063,256.13,256.04,0.3904073]
[1737880985660,0.063,256.13,256.06,23.776884]
[1737880987383,0.063,256.13,256.03,3.9057]
[1737880987569,6.85503434,256.1,256.02,1.5224]
[1737880989464,3.9048,256.09,256.02,1.5224]
[1737880991340,3.9048,256.09,256.01,0.03]
[1737880991548,6.85503434,256.06,256.01,0.03]
[1737880993057,10.76043434,256.06,256.01,0.03]
[1737880995264,6.85503434,256.06,256.01,0.03]
[1737880995456,6.85503434,256.1,256.01,0.03]
[1737880995659,10.75943434,256.12,256.01,23.806884]
[1737880996051,6.85503434,256.12,256.01,23.806884]
[1737880997669,6.85503434,256.12,256.02,3.9059]
[1737880998167,0.063,256.13,256.03,23.776884]
[1737880999475,0.063,256.13,256.04,3.9056]
[1737881001669,0.063,256.13,256.05,1.591]
[1737881002984,0.063,256.13,256.07,3.9051]
[1737881003176,0.063,256.13,256.08,23.776884]
[1737881003585,0.063,256.13,256.06,6.4141]
[1737881003961,3.9673,256.13,256.06,6.4141]
[1737881004168,10.82233434,256.13,256.05,1.591]
[1737881005094,6.85503434,256.11,256.01,0.03]
[1737881006066,6.85503434,256.09,256.01,0.03]
[1737881006279,6.85503434,256.07,256.01,0.03]
[1737881007093,3.9053,256.06,256.01,0.03]
[1737881012586,6.85503434,256.05,256.01,0.03]
[1737881013775,3.9053,256.06,256.01,0.03]
[1737881014799,6.85503434,256.05,256.01,0.03]
[1737881016498,3.9056,256.04,256.01,0.03]
[1737881028106,6.85503434,256.07,256.01,0.03]
[1737881028312,3.9054,256.06,256.01,0.03]
[1737881029110,6.85503434,256.09,256.01,0.03]
[1737881030324,3.905,256.08,256.01,0.03]
[1737881030738,6.85503434,256.07,256.01,0.03]
[1737881031088,3.9053,256.06,256.01,0.03]
[1737881035024,6.85503434,256.07,256.01,0.03]
[1737881035327,3.9051,256.08,256.01,0.03]
[1737881036319,3.9047,256.1,256.01,0.03]
[1737881039748,6.85503434,256.09,256.01,0.03]
[1737881041043,3.905,256.08,256.01,0.03]
[1737881042657,6.85503434,256.05,256.01,0.03]
[1737881043021,3.9056,256.04,256.01,0.03]
[1737881044051,3.9056,256.04,255.94,6.365807]
[1737881044435,3.9056,256.04,256.01,0.03]
[1737881055835,10.75963434,256.11,256.01,0.03]
[1737881056460,6.85503434,256.09,256.01,0.03]
[1737881057547,3.905,256.08,256.01,0.03]
[1737881062964,3.905,256.08,256.02,1.6318]
[1737881063973,3.9048,256.1,256.02,1.6318]
[1737881064261,3.9048,256.1,256.03,20.0]
[1737881064456,3.9045,256.12,256.03,20.0]
[1737881064842,3.9045,256.12,256.02,1.6318]
[1737881065038,0.063,256.13,256.06,20.0]
[1737881065238,0.063,256.13,256.07,23.776884]
[1737881065455,0.063,256.13,256.11,1.6318]
[1737881066667,3.9673,256.13,256.05,1.6318]
[1737881066835,6.85503434,256.12,256.05,1.6318]
[1737881068444,10.75943434,256.12,256.05,1.6318]
[1737881070375,3.9044,256.12,256.05,1.6318]
[1737881076384,0.063,256.13,256.05,1.6318]
[1737881078601,3.9044,256.12,256.05,1.6318]
[1737881084273,0.063,256.13,256.05,1.6318]
[1737881085103,3.9672,256.13,256.05,1.6318]
[1737881087399,3.9672,256.13,256.02,3.9058]
[1737881087400,6.85503434,256.12,256.01,0.03]
[1737881087609,43.776884,256.06,256.01,0.03]
[1737881087783,43.776884,256.06,255.94,4.17801755]
[1737881087784,6.85503434,255.98,255.94,0.03]
[1737881087978,6.85503434,255.96,255.94,0.03]
[1737881089286,6.85503434,255.98,255.94,0.03]
[1737881091034,6.85503434,255.96,255.94,0.03]
[1737881093323,6.85503434,255.98,255.94,0.03]
[1737881093923,6.85503434,256.0,255.94,0.03]
[1737881095611,6.85503434,256.02,255.94,0.03]
[1737881096621,10.76103434,256.02,255.94,0.03]
[1737881101034,6.85503434,255.98,255.94,0.03]
[1737881101419,6.85503434,255.96,255.94,0.03]
[1737881102634,10.76193434,255.96,255.94,0.03]
[1737881115240,6.85503434,255.98,255.94,0.03]
[1737881116161,6.85503434,256.01,255.94,0.03]
[1737881116486,0.063,256.02,255.94,0.03]
[1737881116982,0.063,256.02,255.95,20.0]
[1737881117341,0.063,256.02,255.96,3.9068]
[1737881119057,0.063,256.02,255.94,0.03]
[1737881119253,3.9689,256.02,255.94,0.03]
[1737881119944,6.85503434,256.01,255.94,0.03]
[1737881120364,3.9689,256.02,255.94,0.03]
[1737881120365,6.85503434,255.97,255.94,0.03]
[1737881120567,6.85503434,255.95,255.94,0.03]
[1737881121242,6.85503434,255.97,255.94,0.03]
[1737881121468,10.76173434,255.97,255.94,0.03]
[1737881125274,6.85503434,255.95,255.94,0.03]
[1737881125766,10.76203434,255.95,255.94,0.03]
[1737881127751,35.53891834,255.95,255.94,0.0001]
[1737881129575,34.53891834,255.95,255.94,0.0001]
[1737881132357,10.76203434,255.95,255.94,0.0001]
[1737881135481,44.776884,255.93,255.92,0.0101]
[1737881135687,52.63191834,255.93,255.92,0.0101]
[1737881137191,56.53921834,255.93,255.92,0.0101]
[1737881139172,54.53921834,255.93,255.92,0.0101]
[1737881143992,30.76233434,255.93,255.92,0.0101]
[1737881146883,54.53921834,255.93,255.92,0.0101]
[1737881148598,30.76233434,255.93,255.92,0.0101]
[1737881158307,54.53921834,255.93,255.92,0.0101]
[1737881158498,23.776884,255.92,255.91,0.03]
[1737881158814,24.776884,255.92,255.9,0.03]
[1737881158990,6.85503434,255.91,255.9,0.03]
[1737881159195,30.63191834,255.91,255.9,0.03]
[1737881160292,34.53951834,255.91,255.9,0.03]
[1737881162818,10.76263434,255.91,255.9,0.03]
[1737881164389,6.85503434,255.91,255.9,0.03]
[1737881164595,6.91803434,255.91,255.9,0.03]
[1737881166817,0.063,255.91,255.9,0.03]
[1737881170220,0.063,255.91,255.9,23.806884]
[1737881176347,0.063,255.94,255.93,20.0]
[1737881176527,0.063,255.94,255.93,47.684184]
[1737881176724,0.063,255.94,255.93,23.9073]
[1737881176926,0.063,255.94,255.93,3.9073]
[1737881178728,0.063,255.95,255.94,1.5637]
[1737881179038,0.063,255.95,255.94,25.340584]
[1737881180457,6.85503434,256.09,255.98,21.5637]
[1737881180753,6.85503434,256.09,255.99,23.776884]
[1737881181552,6.85503434,256.09,256.01,20.0]
[1737881181756,6.85503434,256.09,256.01,3.906]
[1737881182447,6.85503434,256.09,256.01,23.906]
[1737881184557,6.91803434,256.13,256.01,47.682884]
[1737881184955,10.82233434,256.13,256.01,47.682884]
[1737881185850,3.9044,256.12,256.01,47.682884]
[1737881186962,6.91803434,256.13,256.01,47.682884]
[1737881187250,3.9673,256.13,256.01,47.682884]
[1737881187458,3.9045,256.12,256.01,47.682884]
[1737881189735,0.063,256.13,256.01,47.682884]
[1737881189941,0.063,256.13,256.09,20.0]
[1737881191062,0.063,256.13,256.12,20.0]
[1737881191645,0.063,256.13,256.09,20.0]
[1737881191846,0.063,256.13,256.1,20.0]
[1737881192050,0.063,256.13,256.09,3.9048]
[1737881194372,0.063,256.13,256.09,3.83147097]
[1737881194551,0.063,256.13,256.09,23.83147097]
[1737881196768,0.063,256.13,256.07,1.5637]
[1737881196977,0.063,256.13,256.05,23.9053]
[1737881197665,0.063,256.13,256.05,3.9053]
[1737881198246,10.82243434,256.13,256.03,20.0]
[1737881198773,10.82243434,256.13,256.01,3.906]
[1737881199573,6.91803434,256.13,256.02,20.0]
[1737881199751,10.82233434,256.13,256.02,20.0]
[1737881200780,10.82233434,256.13,256.03,20.0]
[1737881202082,10.82233434,256.13,256.02,3.9058]
[1737881202451,6.85503434,256.11,256.01,0.03]
[1737881203980,10.75963434,256.11,256.01,0.03]
[1737881205382,3.9046,256.11,256.01,0.03]
[1737881211484,0.063,256.13,256.03,20.0]
[1737881212492,0.063,256.13,256.04,3.9056]
[1737881212788,0.063,256.11,256.04,3.9056]
[1737881216292,0.063,256.11,256.05,23.776884]
[1737881216987,0.063,256.11,256.07,20.0]
[1737881217197,0.063,256.11,256.04,27.682484]
[1737881217573,0.063,256.11,256.07,20.0]
[1737881220700,0.063,256.11,256.02,3.9059]
[1737881223199,3.9676,256.11,256.01,0.03]
[1737881223380,10.82263434,256.11,256.01,0.03]
[1737881226785,6.85503434,256.09,256.01,0.03]
[1737881226991,6.85503434,256.03,256.01,0.03]
[1737881227704,13.03413434,256.03,256.01,0.03]
[1737881228080,3.9059,256.02,256.01,0.03]
[1737881229997,5.5044,256.02,256.01,0.03]
[1737881230198,29.281284,256.02,256.01,0.03]
[1737881233301,5.5044,256.02,256.01,0.03]
[1737881238405,6.85503434,256.03,256.01,0.03]
[1737881238709,6.85503434,256.07,256.01,0.03]
[1737881239006,5.4569,256.08,256.01,0.03]
[1737881240285,6.85503434,256.07,256.01,0.03]
[1737881240589,6.85503434,256.03,256.01,0.03]
[1737881240997,6.85503434,256.05,256.01,0.03]
[1737881242104,6.85503434,256.07,256.01,0.03]
[1737881242810,6.85503434,256.09,256.01,0.03]
[1737881243111,6.91803434,256.11,256.01,0.03]
[1737881243491,0.063,256.11,256.01,20.03]
[1737881244184,0.063,256.11,256.05,20.0]
[1737881244808,0.063,256.11,256.09,20.0]
[1737881245193,0.063,256.11,256.1,0.39036438]
[1737881245909,0.063,256.11,256.09,20.0]
[1737881246105,0.063,256.11,256.1,20.0]
[1737881247198,0.063,256.11,256.09,3.9047]
[1737881248010,0.063,256.11,256.1,20.0]
[1737881248210,0.063,256.11,256.07,5.5535]
[1737881248509,0.063,256.11,256.03,3.9057]
[1737881248888,0.063,256.11,256.04,20.0]
[1737881250910,0.063,256.11,256.04,23.9055]
[1737881253015,10.82263434,256.11,256.04,20.0]
[1737881254017,3.9676,256.11,256.04,20.0]
[1737881254816,0.063,256.11,256.04,20.0]
[1737881258407,0.063,256.11,256.04,23.9055]
[1737881258609,0.063,256.11,256.04,23.9355]
[1737881267031,0.063,256.11,256.04,0.03]
[1737881274841,3.9676,256.11,256.04,0.03]
[1737881275934,6.85503434,256.09,256.04,0.03]
[1737881276140,6.85503434,256.07,256.04,0.03]
[1737881277151,3.9053,256.06,256.04,0.03]
[1737881282636,10.75983434,256.09,256.04,0.03]
[1737881288751,10.75983434,256.09,255.94,20.0]
[1737881289951,3.9048,256.09,255.99,20.0]
[1737881290128,0.063,256.11,255.99,20.0]
[1737881290451,3.9676,256.11,256.0,20.0]
[1737881291429,3.9676,256.11,256.01,23.906]
[1737881292034,0.063,256.11,256.01,23.906]
[1737881292349,0.063,256.11,256.02,20.0]
[1737881293954,0.063,256.11,256.03,3.9057]
[1737881296854,0.063,256.11,256.02,20.0]
[1737881296855,3.9675,256.11,256.02,20.0]
[1737881297056,10.82253434,256.11,256.02,20.0]
[1737881297455,10.82253434,256.11,256.01,0.03]
[1737881297838,6.85503434,256.09,256.01,0.03]
[1737881298044,10.76003434,256.09,256.01,0.03]
[1737881300836,0.063,256.11,256.01,0.03]
[1737881301162,3.9676,256.11,256.02,20.0]
[1737881301454,3.9676,256.11,256.01,0.03]
[1737881303054,0.063,256.11,256.03,20.0]
[1737881305156,0.063,256.11,256.04,20.0]
[1737881307076,0.063,256.11,256.01,23.806884]
[1737881307266,3.9676,256.11,256.01,27.712784]
[1737881307960,0.063,256.11,256.01,27.712784]
[1737881309578,0.063,256.11,256.04,20.0]
[1737881309771,0.063,256.11,256.05,0.3903908]
[1737881310160,0.063,256.11,256.05,1.3903908]
[1737881310550,0.063,256.11,256.05,0.3903908]
[1737881310757,0.063,256.11,256.04,20.0]
[1737881311776,0.063,256.11,256.04,23.9054]
[1737881312675,0.063,256.11,256.05,20.0]
[1737881313351,0.063,256.11,256.05,23.9054]
[1737881313547,0.063,256.11,256.06,20.0]
[1737881314379,0.063,256.11,256.06,20.39041359]
[1737881315753,0.063,256.11,256.07,3.9051]
[1737881315954,0.063,256.11,256.08,0.39036716]
[1737881316465,0.063,256.11,256.1,20.0]
[1737881316659,0.063,256.11,256.1,20.39033386]
[1737881317177,0.063,256.11,256.1,0.39033386]
[1737881317575,0.063,256.11,256.1,20.39033386]
[1737881317765,0.063,256.11,256.1,24.29503386]
[1737881320569,0.063,256.13,256.1,187.94271786]
[1737881320771,0.063,256.13,256.1,187.552384]
[1737881321185,0.063,256.13,256.12,23.776884]
[1737881321398,0.063,256.13,256.12,24.16713684]
[1737881322558,0.063,256.13,256.12,28.07153684]
[1737881324354,0.063,256.13,256.12,29.07153684]
[1737881324355,0.0001,256.13,256.12,29.07153684]
[1737881324560,0.063,256.2,256.15,43.776884]
[1737881324865,0.063,256.2,256.16,0.39019618]
[1737881325182,0.063,256.2,256.16,162.46708018]
[1737881325368,0.063,256.2,256.19,43.776884]
[1737881325570,0.063,256.2,256.19,44.16704817]
[1737881326985,0.063,256.2,256.19,48.07034817]
[1737881340888,0.063,256.2,256.19,185.37034817]
[1737881341190,0.0001,256.21,256.2,36.496884]
[1737881341411,0.0001,256.21,256.2,24.776884]
[1737881341582,0.0001,256.21,256.2,23.776884]
[1737881341779,0.0001,256.21,256.19,142.7714]
[1737881342000,0.0001,256.21,256.19,141.2033]
[1737881342194,0.0001,256.21,256.2,0.39015896]
[1737881343005,0.0001,256.21,256.2,24.16704296]
[1737881344701,0.0001,256.21,256.2,25.16704296]
[1737881346206,0.0001,256.21,256.2,161.46704296]
[1737881346405,0.0001,256.21,256.2,161.076884]
[1737881349803,0.0001,256.21,256.2,25.776884]
[1737881349987,0.0001,256.25,256.24,24.776884]
[1737881350189,0.0001,256.25,256.24,25.16695889]
[1737881351084,0.0001,256.25,256.24,29.06945889]
[1737881352186,0.0001,256.25,256.24,28.06945889]
[1737881355004,0.0001,256.25,256.24,165.36945889]
[1737881355202,0.0001,256.25,256.24,165.979384]
[1737881356001,0.063,256.32,256.28,20.0]
[1737881356301,0.063,256.32,256.31,43.776884]
[1737881356488,0.063,256.32,256.31,44.16688673]
[1737881357282,0.063,256.36,256.32,23.776884]
[1737881357884,0.063,256.36,256.35,43.776884]
[1737881358093,0.063,256.36,256.35,181.46677636]
[1737881358309,0.063,256.36,256.35,181.076884]
[1737881359106,0.063,256.36,256.35,184.977784]
[1737881362591,0.063,256.36,256.35,161.2009]
[1737881362797,0.063,256.36,256.35,157.3]
[1737881362998,0.063,256.36,256.3,3.9015]
[1737881363198,0.063,256.36,256.3,4.291527]
[1737881363416,0.063,256.36,256.32,20.0]
[1737881363619,0.063,256.36,256.32,20.39001687]
[1737881364407,0.063,256.36,256.32,24.29131687]
[1737881366707,0.063,256.36,256.32,23.9013]
[1737881367425,0.063,256.36,256.35,20.0]
[1737881368299,0.063,256.36,256.32,3.9013]
[1737881374245,0.063,256.36,256.33,20.39003668]
[1737881374741,0.063,256.36,256.34,23.776884]
[1737881375036,0.063,256.36,256.35,44.16681591]
[1737881375242,0.063,256.38,256.35,44.16681591]
[1737881375243,0.063,256.38,256.36,23.776884]
[1737881375928,0.063,256.38,256.36,0.3899171]
[1737881376845,0.063,256.38,256.36,24.2906171]
[1737881377826,0.063,256.38,256.36,28.0675011]
[1737881378221,0.063,256.38,256.36,29.0675011]
[1737881378531,0.063,256.38,256.37,23.776884]
[1737881378931,0.063,256.39,256.38,47.677284]
[1737881379124,0.063,256.39,256.38,48.0671395]
[1737881381823,0.063,256.39,256.38,185.3671395]
[1737881382012,0.063,256.39,256.38,184.977284]
[1737881387217,0.71019301,256.81,256.8,3.0]
[1737881387417,6.85503434,256.96,256.84,1.0]
[1737881387733,6.85503434,256.94,256.84,1.0]
[1737881388128,78.59905827,256.9,256.84,1.0]
[1737881388333,71.74402393,256.9,256.84,1.0]
[1737881388523,78.59905827,256.9,256.84,1.0]
[1737881389320,71.74402393,256.9,256.84,21.0]
[1737881389540,71.74402393,256.9,256.84,75.00831908]
[1737881389942,71.74402393,256.9,256.85,23.776884]
[1737881390254,51.82787775,256.86,256.85,23.776884]
[1737881390540,6.85503434,256.98,256.94,1.0]
[1737881390720,6.85503434,256.96,256.92,1.0]
[1737881390919,6.85503434,256.96,256.94,1.0]
[1737881391535,6.85503434,256.96,256.9,1.0]
[1737881391751,10.63835364,256.94,256.9,1.0]
[1737881392035,10.63835364,256.96,256.92,1.0]
[1737881392741,10.63835364,256.98,256.92,1.0]
[1737881392919,10.63835364,256.96,256.92,1.0]
[1737881393431,6.5007,257.0,256.97,1.0]
[1737881393739,10.63835364,257.06,256.99,1.0]
[1737881393945,20.85345364,257.08,256.99,1.0]
[1737881394353,24.74325364,257.08,256.99,1.0]
[1737881394544,10.63835364,257.06,256.99,1.0]
[1737881395433,17.09345364,257.08,257.01,1.0]
[1737881395637,17.09345364,257.08,256.99,1.0]
[1737881396152,20.98335364,257.08,256.99,1.0]
[1737881396627,10.63835364,257.06,256.99,1.0]
[1737881396827,10.63835364,257.06,256.97,1.0]
[1737881397128,20.98335364,257.08,257.01,1.0]
[1737881397632,6.4551,257.08,257.03,1.0]
[1737881398023,45.9692,257.12,257.05,1.0]
[1737881398838,0.03,257.08,257.05,1.0]
[1737881399737,0.03,257.08,257.07,1.0]
[1737881400529,0.03,257.08,257.03,1.0]
[1737881401344,0.03,257.08,257.04,1.0]
[1737881401848,10.66835364,257.08,257.01,1.0]
[1737881402056,10.63835364,257.07,257.01,1.0]
[1737881402259,29.61196712,257.12,257.03,1.0]
[1737881402556,29.61196712,257.12,257.08,1.0]
[1737881402758,29.61196712,257.12,257.1,1.0]
[1737881403939,10.63835364,257.24,257.23,1.0]
[1737881404126,10.63835364,257.26,257.24,1.0]
[1737881404332,10.63835364,257.26,257.17,1.0]
[1737881404526,3.8868,257.28,257.1,1.0]
[1737881404527,10.63835364,257.18,257.1,1.0]
[1737881404729,10.63835364,257.14,257.1,1.0]
[1737881404926,10.63835364,257.14,256.99,3.8911]
[1737881404927,10.63835364,257.12,257.05,1.0]
[1737881405143,10.63835364,257.12,257.07,3.4367]
[1737881405734,10.63835364,257.12,257.07,2.4367]
[1737881405924,10.63835364,257.08,257.07,2.4367]
[1737881407937,14.52815364,257.08,257.07,2.4367]
[1737881408743,48.02953764,257.08,256.97,1.0]
[1737881408951,10.63835364,257.02,256.97,1.0]
[1737881409246,10.63835364,257.02,256.98,1.0]
[1737881410054,3.8908,257.01,256.98,1.0]
[1737881410255,3.8908,257.01,256.96,1.0]
[1737881410544,10.63835364,257.0,256.94,1.0]
[1737881410939,10.63835364,257.02,256.96,1.0]
[1737881411728,10.63835364,257.02,256.94,1.0]
[1737881411954,10.63835364,257.0,256.94,1.0]
[1737881412253,10.63835364,256.98,256.92,0.671]
[1737881412555,10.63835364,256.96,256.92,0.671]
[1737881413353,3.8918,256.95,256.92,0.671]
[1737881415336,10.63835364,256.94,256.92,0.671]
[1737881416943,23.776884,256.93,256.92,0.671]
[1737881417350,27.668984,256.93,256.92,0.671]
[1737881418037,3.8921,256.93,256.92,0.671]
[1737881420840,10.63835364,256.94,256.92,0.671]
[1737881421461,10.63835364,256.98,256.92,1.671]
[1737881421754,3.8917,256.96,256.92,0.671]
[1737881421937,10.63835364,256.94,256.92,0.671]
[1737881423060,23.776884,256.93,256.92,0.671]
[1737881423431,27.668984,256.93,256.92,0.671]
[1737881423856,20.0,256.9,256.82,1.0]
[1737881424058,10.63835364,256.87,256.8,1.0]
[1737881424355,10.63835364,256.89,256.82,1.0]